Workbook

Sheet Answers
B1: Valuing an Option
B3: As the Christmas season approaches, you feel that consumer sentiment in your
B4: neighborhood is somewhat better than it is reported to be nationally, and you think this
B5: bodes well for regional retail sales. Indeed, you feel that shares in Webmart, a regional
B6: retail chain, are slightly undervalued. Over the next 20 trading days, you believe that the | L6: `1
B7: share price - currently $66/share - is likely to drift upwards. Specifically, you think that
B8: the share price will, each day, either drop $1 (a 20% chance), stay unchanged (a 45%
B9: chance), or move up by $1 (a 35% chance). (The day-to-day price changes will vary
B10: independently.)
I11: change | J11: Pr(change)
B12: What is the expected change in share price in the course of one day? | I12: -1 | J12: 0.2
I13: 0 | J13: 0.45
B14: =SUMPRODUCT(I12:I14,J12:J14) -> 0.15 | C14: =showformula(B14) -> =SUMPRODUCT(I12:I14,J12:J14) | I14: 1 | J14: 0.35
B16: What is one standard-deviation's-worth of uncertainty in the one-day price change?
B18: =SQRT(SUMPRODUCT(I12:I14^2,J12:J14)-B14^2) -> 0.7262919523 | C18: =showformula(B18) -> =SQRT(SUMPRODUCT(I12:I14^2,J12:J14)-B14^2)
B20: What is the expected stock price 20 days from now?
B22: =66+20*B14 -> 69 | C22: =showformula(B22) -> =66+20*B14
B24: What is one standard-deviation's-worth of uncertainty in the stock price 20 days from
B25: now?
B27: =SQRT(20)*B18 -> 3.248076354 | C27: =showformula(B27) -> =SQRT(20)*B18
B29: You don't have enough free capital to buy 100 shares in Webmart right now. However,
B30: the November $70 call option, which expires on the third Friday in November - exactly
B31: 20 trading days from now - is selling for only a $0.50 premium.
B33: (This means that, for $50, you can purchase an option to buy 100 shares in Webmart at
B34: a price of $70 on the expiration day. On the day of expiration, if the share price is below
B35: $70, your option will be valueless (and you'll lose your $50). However, if the share price | P35: cumulative
B36: is above $70, you'll be able to exercise the option, and immediately sell the 100 shares | N36: change | O36: Pr(change) | P36: 0
B37: at the market price. For example, if the share price is $73 twenty days from now, the | N37: -1 | O37: 0.2 | P37: =P36+O37 -> 0.2
B38: option will net you 100⋅($73-$70) - $50 = $250 in profit. To keep things simple, we'll | N38: 0 | O38: 0.45 | P38: =P37+O38 -> 0.65
B39: ignore commissions and taxes.) | N39: 1 | O39: 0.35 | P39: =P38+O39 -> 1
B41: Using 50,000 simulation runs, estimate your expected profit from the purchase of a | J41: share price | K41: =RAND | L41: price change | M41: another way | N41: another way
B42: 100-share November $70 call option.
I43: start | J43: 66 | K43: =RAND() -> 0.2840577044 | L43: =IF(K43<0.2,-1,IF(K43<0.65,0,1)) -> 0 | M43: =LOOKUP(RAND(),$P$36:$P$38,$N$37:$N$39) -> -1 | N43: =LOOKUP(RAND(),{0,0.2,0.65;-1,0,1}) -> 0 | O43: =showformula(L43) -> =IF(K43<0.2,-1,IF(K43<0.65,0,1))
D44: =-50+IF(J63>70,100*(J63-70),0) -> 350 | E44: =showformula(D44) -> =-50+IF(J63>70,100*(J63-70),0) | I44: 1 day later | J44: =J43+L43 -> 66 | K44: 0.9389709923 | L44: 1 | M44: 0 | N44: =LOOKUP(RAND(),{0,0.2,0.65;-1,0,1}) -> 0 | O44: =showformula(M43) -> =LOOKUP(RAND(),$P$36:$P$38,$N$37:$N$39)
E45: profit from buying option | I45: 2 days later | J45: 67 | K45: 0.5538433558 | L45: 0 | M45: 1 | N45: =LOOKUP(RAND(),{0,0.2,0.65;-1,0,1}) -> 0 | O45: =showformula(N43) -> =LOOKUP(RAND(),{0,0.2,0.65;-1,0,1})
I46: 3 days later | J46: 67 | K46: 0.3350768521 | L46: 0 | M46: -1 | N46: =LOOKUP(RAND(),{0,0.2,0.65;-1,0,1}) -> -1
C47: =ADDRESS(ROW($J$63),COLUMN($J$63)) -> $J$63 | D47: =ADDRESS(ROW($D$44),COLUMN($D$44)) -> $D$44 | E47: monitored cell | I47: 4 days later | J47: 67 | K47: 0.3173791399 | L47: 0 | M47: 0 | N47: =LOOKUP(RAND(),{0,0.2,0.65;-1,0,1}) -> 1
C48: 69.02744 | D48: 35.666 | E48: mean | I48: 5 days later | J48: 67 | K48: 0.3307216545 | L48: 0 | M48: 0 | N48: =LOOKUP(RAND(),{0,0.2,0.65;-1,0,1}) -> -1
C49: 3.249476608 | D49: 155.1670647 | E49: sample standard deviation | I49: 6 days later | J49: 67 | K49: 0.7527852415 | L49: 1 | M49: 0 | N49: =LOOKUP(RAND(),{0,0.2,0.65;-1,0,1}) -> -1
C50: 55 | D50: -50 | E50: minimum | I50: 7 days later | J50: 68 | K50: 0.3698336808 | L50: 0 | M50: 1 | N50: =LOOKUP(RAND(),{0,0.2,0.65;-1,0,1}) -> 1
C51: 82 | D51: 1150 | E51: maximum | I51: 8 days later | J51: 68 | K51: 0.9098237417 | L51: 1 | M51: 0 | N51: =LOOKUP(RAND(),{0,0.2,0.65;-1,0,1}) -> 0
C52: 50000 | D52: 50000 | E52: number of simulation runs | I52: 9 days later | J52: 69 | K52: 0.1746257737 | L52: -1 | M52: 1 | N52: =LOOKUP(RAND(),{0,0.2,0.65;-1,0,1}) -> 0
C53: =1.96*C49/SQRT(C52) -> 0.0284829183 | D53: =1.96*D49/SQRT(D52) -> 1.36009929 | E53: margin of error (95% confidence) | I53: 10 days later | J53: 68 | K53: 0.7355912601 | L53: 1 | M53: -1 | N53: =LOOKUP(RAND(),{0,0.2,0.65;-1,0,1}) -> 1
I54: 11 days later | J54: 69 | K54: 0.2897591941 | L54: 0 | M54: -1 | N54: =LOOKUP(RAND(),{0,0.2,0.65;-1,0,1}) -> 1
B55: These are the precise values, derived (painfully) on the next page: | I55: 12 days later | J55: 69 | K55: 0.9115325355 | L55: 1 | M55: 0 | N55: =LOOKUP(RAND(),{0,0.2,0.65;-1,0,1}) -> 0
I56: 13 days later | J56: 70 | K56: 0.7624049015 | L56: 1 | M56: 0 | N56: =LOOKUP(RAND(),{0,0.2,0.65;-1,0,1}) -> 0
D57: 34.62074608 | E57: E[profit from buying option] | I57: 14 days later | J57: 71 | K57: 0.2875644365 | L57: 0 | M57: 0 | N57: =LOOKUP(RAND(),{0,0.2,0.65;-1,0,1}) -> -1
D58: 153.2759243 | E58: StDev(profit) | I58: 15 days later | J58: 71 | K58: 0.7342854301 | L58: 1 | M58: 1 | N58: =LOOKUP(RAND(),{0,0.2,0.65;-1,0,1}) -> -1
D59: 0.3251358273 | E59: Pr(option pays off) | I59: 16 days later | J59: 72 | K59: 0.9020005018 | L59: 1 | M59: -1 | N59: =LOOKUP(RAND(),{0,0.2,0.65;-1,0,1}) -> -1
I60: 17 days later | J60: 73 | K60: 0.784873055 | L60: 1 | M60: 0 | N60: =LOOKUP(RAND(),{0,0.2,0.65;-1,0,1}) -> 0
I61: 18 days later | J61: 74 | K61: 0.08936768037 | L61: -1 | M61: 0 | N61: =LOOKUP(RAND(),{0,0.2,0.65;-1,0,1}) -> 1
I62: 19 days later | J62: 73 | K62: 0.9583873879 | L62: 1 | M62: 0 | N62: =LOOKUP(RAND(),{0,0.2,0.65;-1,0,1}) -> 1
I63: 20 days later | J63: 74
B67: Don't worry about this below-the-line material. It's only here to illustrate some advanced (non-required) material.
B70: Here's an estimate of the probability that the option pays off,
B71: made using the Central Limit Theorem:
D73: =1-NORMDIST(70.5,B22,B27,TRUE) -> 0.3221081427 | E73: Pr(option pays off) | I73: =showformula(D73) -> =1-NORMDIST(70.5,B22,B27,TRUE)
B75: And here's an estimate of the value of the option:
D77: =B22+B27^2*NORMDIST(70.5,B22,B27,FALSE)/(1-NORMDIST(70.5,B22,B27,TRUE)) -> 72.6159596 | E77: E[closing price | closes above $70] | I77: =showformula(D77) -> =B22+B27^2*NORMDIST(70.5,B22,B27,FALSE)/(1-NORMDIST(70.5,B22,B27,TRUE))
D78: =-50+(D77-70)*100*D73 -> 34.26218866 | E78: E[profit from buying option] | I78: =showformula(D78) -> =-50+(D77-70)*100*D73
I80: This formula was copied from the Week-5 workbook "Adverse_selection_plus.xls."
I82: Since only full-dollar amounts were possible in the problem, and the option is valueless
I83: at closing prices of $70 or less while having positive value at closing prices of $71 or
I84: more, I set my "dividing line" in the normal approximation at $70.5.

Sheet Psswrds (hidden)
A1: NetID | B1: Password | C1: Offset | D1: Index | F1: NetID | G1: Password
A2: aak301 | B2: m&g7221 | C2: 1 | D2: 1 | F2: =LOWER(#REF!) ->  | G2: =LOWER(#REF!) -> 
A3: act732 | B3: yahoo | C3: 2 | D3: 2
A4: aka876 | B4: moscow80 | C4: 3 | D4: 3 | F4: =LOOKUP(F2,A:A,D:D) ->  | G4: =showformula(F4) -> =LOOKUP(F2,A:A,D:D)
A5: ald556 | B5: sammi | C5: 4 | D5: 4 | F5: =IF(AND(OFFSET(A1,F4,0)=F2,OFFSET(B1,F4,0)=G2),1,0) ->  | G5: =showformula(F5) -> =IF(AND(OFFSET(A1,F4,0)=F2,OFFSET(B1,F4,0)=G2),1,0)
A6: ama122 | B6: brasil | C6: 5 | D6: 5 | F6: =IF(ISNA(F4),0,F5) ->  | G6: =showformula(F6) -> =IF(ISNA(F4),0,F5)
A7: amg559 | B7: gins27 | C7: 6 | D7: 6 | F7: =OFFSET(A1,location,2) ->  | G7: =showformula(F7) -> =OFFSET(A1,location,2)
A8: apa128 | B8: ampamp | C8: 7 | D8: 7
A9: asc739 | B9: drewski | C9: 8 | D9: 8
A10: aso733 | B10: dankss | C10: 9 | D10: 9
A11: asu551 | B11: qwerty | C11: 10 | D11: 10
A12: awi807 | B12: codered | C12: 11 | D12: 11
A13: bcn538 | B13: bubba1 | C13: 12 | D13: 12
A14: bkh179 | B14: sasi1arc | C14: 13 | D14: 13
A15: bku272 | B15: dragon | C15: 14 | D15: 14
A16: bms394 | B16: critt24er | C16: 15 | D16: 15
A17: bsi656 | B17: molde44 | C17: 16 | D17: 16
A18: cbe387 | B18: salsa | C18: 17 | D18: 17
A19: cme270 | B19: plymouth | C19: 18 | D19: 18
A20: cms077 | B20: bubbawoo | C20: 19 | D20: 19
A21: dar580 | B21: jonna | C21: 20 | D21: 20
A22: dda737 | B22: travica | C22: 21 | D22: 21
A23: dmu577 | B23: perfect36 | C23: 22 | D23: 22
A24: dpp522 | B24: minerva | C24: 23 | D24: 23
A25: drs160 | B25: tewligan | C25: 24 | D25: 24
A26: dtk674 | B26: joe22sph | C26: 25 | D26: 25
A27: eer846 | B27: tiffany | C27: 26 | D27: 26
A28: gch518 | B28: panda | C28: 27 | D28: 27
A29: jap367 | B29: cabernet | C29: 28 | D29: 28
A30: jas731 | B30: 23ryan | C30: 29 | D30: 29
A31: jay306 | B31: mystic1k | C31: 30 | D31: 30
A32: jbr582 | B32: cosmo2 | C32: 31 | D32: 31
A33: jch308 | B33: 1234 | C33: 32 | D33: 32
A34: jda422 | B34: d3jdwcs | C34: 33 | D34: 33
A35: jdk714 | B35: tarheels | C35: 34 | D35: 34
A36: jdl593 | B36: jdl409 | C36: 35 | D36: 35
A37: jem203 | B37: hallie | C37: 36 | D37: 36
A38: jgo328 | B38: barlow1122 | C38: 37 | D38: 37
A39: jhi824 | B39: kclass | C39: 38 | D39: 38
A40: jjs743 | B40: cervelo | C40: 39 | D40: 39
A41: jlc521 | B41: longhorns | C41: 40 | D41: 40
A42: jle769 | B42: focuss | C42: 41 | D42: 41
A43: jlo188 | B43: snoggy | C43: 42 | D43: 42
A44: jmf513 | B44: jodes | C44: 43 | D44: 43
A45: jmi138 | B45: 315315 | C45: 44 | D45: 44
A46: jpa331 | B46: bluegiraffe | C46: 45 | D46: 45
A47: jps207 | B47: notredame | C47: 46 | D47: 46
A48: jro292 | B48: fall08a | C48: 47 | D48: 47
A49: jtg300 | B49: football | C49: 48 | D49: 48
A50: jva798 | B50: panful | C50: 49 | D50: 49
A51: kaz706 | B51: oxford | C51: 50 | D51: 50
A52: kbg568 | B52: ilovestats | C52: 51 | D52: 51
A53: klf832 | B53: addison | C53: 52 | D53: 52
A54: kmp719 | B54: goose | C54: 53 | D54: 53
A55: koc205 | B55: donkey1 | C55: 54 | D55: 54
A56: kpf717 | B56: cubs2008 | C56: 55 | D56: 55
A57: kpo366 | B57: clare4me | C57: 56 | D57: 56
A58: lbk579 | B58: statsrule | C58: 57 | D58: 57
A59: lbw733 | B59: brooke | C59: 58 | D59: 58
A60: lhb298 | B60: random | C60: 59 | D60: 59
A61: lhb578 | B61: maine1 | C61: 60 | D61: 60
A62: lmh853 | B62: lhamilt3 | C62: 61 | D62: 61
A63: mac197 | B63: markcanty | C63: 62 | D63: 62
A64: mbj299 | B64: stephanie | C64: 63 | D64: 63
A65: mcm305 | B65: michael | C65: 64 | D65: 64
A66: mdg121 | B66: singapore | C66: 65 | D66: 65
A67: met124 | B67: cherry | C67: 66 | D67: 66
A68: mjw368 | B68: decs | C68: 67 | D68: 67
A69: mpa529 | B69: patilmh | C69: 68 | D69: 68
A70: mpa724 | B70: chocolate | C70: 69 | D70: 69
A71: mpa885 | B71: myhero | C71: 70 | D71: 70
A72: nke725 | B72: kellogg | C72: 71 | D72: 71
A73: npa722 | B73: gocubsgo | C73: 72 | D73: 72
A74: pah273 | B74: madmax | C74: 73 | D74: 73
A75: pjs114 | B75: klavieres | C75: 74 | D75: 74
A76: pvc530 | B76: magic11 | C76: 75 | D76: 75
A77: rka222 | B77: @nai:shu | C77: 76 | D77: 76
A78: rmb830 | B78: ryan5683 | C78: 77 | D78: 77
A79: rms925 | B79: lasagna | C79: 78 | D79: 78
A80: rtb831 | B80: ava2008 | C80: 79 | D80: 79
A81: sba974 | B81: sas@sas2 | C81: 80 | D81: 80
A82: sch715 | B82: password1 | C82: 81 | D82: 81
A83: shc595 | B83: wisconsin | C83: 82 | D83: 82
A84: sja746 | B84: boris | C84: 83 | D84: 83
A85: sjs594 | B85: sjs71579 | C85: 84 | D85: 84
A86: slw279 | B86: tompetty | C86: 85 | D86: 85
A87: sma724 | B87: lyons66 | C87: 86 | D87: 86
A88: smb287 | B88: joshua | C88: 87 | D88: 87
A89: smg767 | B89: ufgator1 | C89: 88 | D89: 88
A90: spb265 | B90: breyer | C90: 89 | D90: 89
A91: sth695 | B91: sant5357 | C91: 90 | D91: 90
A92: tjl932 | B92: ace44 | C92: 91 | D92: 91
A93: tjs591 | B93: whistler | C93: 92 | D93: 92
A94: tlh926 | B94: calendula | C94: 93 | D94: 93
A95: tmf442 | B95: alphazeta | C95: 94 | D95: 94
A96: tmf635 | B96: b7lu7e | C96: 95 | D96: 95
A97: wjo838 | B97: b1illy | C97: 96 | D97: 96
A98: wpc235 | B98: football | C98: 97 | D98: 97

Sheet Sheet1 (hidden)
B2: total | D2: #1 | E2: #2 | F2: #3 | G2: #4 | H2: #5 | I2: #6 | J2: #7 | K2: #8 | L2: #9 | M2: #10 | N2: #11 | O2: #12
B3: =SUM(C9:O9) -> 51 | D3: 45 | E3: 36 | F3: 51 | G3: 51 | H3: 44 | I3: 50 | J3: 42 | K3: 49 | L3: 36 | M3: 24 | N3: 0 | O3: 0
D4: =D3/$B$3 -> 0.8823529412 | E4: 0.7058823529 | F4: 1 | G4: 1 | H4: 0.862745098 | I4: 0.9803921569 | J4: 0.8235294118 | K4: 0.9607843137 | L4: 0.7058823529 | M4: 0.4705882353 | N4: 0 | O4: 0
B7: absent | C7: 0 correct | D7: 1 correct | E7: 2 correct | F7: 3 correct | G7: 4 correct | H7: 5 correct | I7: 6 correct | J7: 7 correct | K7: 8 correct | L7: 9 correct | M7: 10 correct | N7: 11 correct | O7: 12 correct
B9: 3 | C9: 0 | D9: 0 | E9: 0 | F9: 1 | G9: 1 | H9: 0 | I9: 6 | J9: 4 | K9: 9 | L9: 15 | M9: 15 | N9: 0 | O9: 0
B10: =B9/(B9+B3) -> 0.05555555556 | C10: =C9/$B$3 -> 0 | D10: 0 | E10: 0 | F10: 0.01960784314 | G10: 0.01960784314 | H10: 0 | I10: 0.1176470588 | J10: 0.07843137255 | K10: 0.1764705882 | L10: 0.2941176471 | M10: 0.2941176471 | N10: 0 | O10: 0 | P10: =SUM(C10:O10) -> 1
